bitfinex/quotes_BTCUSD_20230109
["timestamp","ask_amount","ask_price","bid_price","bid_amount"]
[1673231792709,1.12588409,17220.0,17219.0,1.323]
[1673231793722,1.12550047,17220.0,17219.0,1.670663]
[1673231793975,1.12550047,17220.0,17219.0,1.323]
[1673231794472,1.12550047,17220.0,17219.0,1.802963]
[1673231795234,1.12550047,17220.0,17219.0,1.670663]
[1673231795483,1.12588409,17220.0,17219.0,1.670663]
[1673231795733,0.58582859,17220.0,17219.0,1.67077918]
[1673231795991,0.58582859,17221.0,17219.0,1.67077918]
[1673231796240,0.82028262,17222.0,17220.0,0.3]
[1673231796504,0.82028262,17222.0,17220.0,0.46231162]
[1673231796505,0.58664563,17221.0,17220.0,0.46231162]
[1673231796756,0.58664563,17222.0,17220.0,1.34065376]
[1673231797020,0.5214106,17221.0,17220.0,1.16181676]
[1673231797269,0.5214106,17221.0,17220.0,1.50945376]
[1673231797771,0.5214106,17221.0,17220.0,1.50956994]
[1673231798025,0.5214106,17221.0,17220.0,1.51756994]
[1673231798287,0.5214106,17221.0,17220.0,1.34076994]
[1673231798543,0.001,17221.0,17220.0,1.47976994]
[1673231799313,0.58664563,17222.0,17220.0,1.34065376]
[1673231799567,0.001,17221.0,17220.0,1.13201676]
[1673231799816,0.001,17221.0,17220.0,1.47965376]
[1673231800344,0.001,17221.0,17220.0,1.31734214]
[1673231800606,0.58664563,17222.0,17220.0,1.17834214]
[1673231800907,0.58764563,17222.0,17220.0,1.31834214]
[1673231801145,0.58664563,17222.0,17221.0,0.3474444]
[1673231801382,0.00038362,17222.0,17221.0,0.3474444]
[1673231801895,0.58699828,17221.0,17220.0,0.44]
[1673231802145,0.58699828,17221.0,17220.0,1.33369737]
[1673231802403,0.58699828,17221.0,17220.0,1.42871466]
[1673231803170,0.82567617,17221.0,17220.0,0.786466]
[1673231803422,0.58803054,17221.0,17220.0,0.439]
[1673231803677,0.00138362,17221.0,17220.0,0.439]
[1673231804431,0.00138362,17221.0,17220.0,0.786469]
[1673231804680,0.00138362,17221.0,17220.0,0.439]
[1673231804943,0.00138362,17221.0,17220.0,0.786469]
[1673231805198,0.00138362,17221.0,17220.0,0.439]
[1673231805450,0.00138362,17221.0,17220.0,0.786469]
[1673231805704,0.00138362,17221.0,17220.0,0.78678945]
[1673231805957,0.001,17221.0,17220.0,0.786469]
[1673231806204,0.001,17221.0,17220.0,0.439]
[1673231806456,0.001,17221.0,17220.0,0.786469]
[1673231807224,0.00138362,17221.0,17220.0,0.786469]
[1673231807473,0.58824856,17221.0,17220.0,0.78678945]
[1673231807997,0.58824856,17221.0,17220.0,0.786469]
[1673231808257,0.58824856,17221.0,17220.0,0.78678945]
[1673231808826,0.58824856,17221.0,17220.0,0.786469]
[1673231809576,0.001,17221.0,17220.0,0.786469]
[1673231810586,0.001,17221.0,17220.0,2.10085332]
[1673231810865,0.001,17221.0,17220.0,2.8036281]
[1673231810866,0.58823565,17221.0,17220.0,2.8036281]
[1673231811119,0.52292062,17221.0,17220.0,2.5036281]
[1673231811639,0.001,17221.0,17220.0,2.5036281]
[1673231811897,0.001,17221.0,17220.0,2.8036281]
[1673231812400,0.78359174,17221.0,17220.0,2.9724281]
[1673231812911,0.78359174,17221.0,17220.0,2.8334281]
[1673231813161,0.78259174,17221.0,17220.0,2.8334281]
[1673231813428,0.78259174,17221.0,17220.0,2.9724281]
[1673231813681,0.78259174,17221.0,17220.0,10.4724281]
[1673231813960,0.6085598,17221.0,17220.0,10.4714281]
[1673231814981,1.04313686,17221.0,17220.0,10.3334281]
[1673231815228,1.04313686,17221.0,17220.0,10.4714281]
[1673231815490,0.78239045,17221.0,17220.0,10.4714281]
[1673231816032,0.60850302,17221.0,17220.0,10.4714281]
[1673231817589,0.43447907,17221.0,17220.0,10.4714281]
[1673231817927,0.17379001,17221.0,17220.0,9.82323087]
[1673231818135,0.17379001,17222.0,17220.0,10.83673087]
[1673231818401,0.17379001,17222.0,17221.0,1.55925501]
[1673231818661,0.17379001,17222.0,17221.0,2.44067679]
[1673231818908,0.43439946,17223.0,17222.0,0.3]
[1673231819151,0.43439946,17223.0,17222.0,1.63896023]
[1673231819403,0.43439946,17223.0,17222.0,1.98638123]
[1673231819654,0.43439946,17223.0,17222.0,2.16280622]
[1673231819931,0.43439946,17223.0,17222.0,2.77694545]
[1673231820484,0.1737104,17223.0,17222.0,2.91594545]
[1673231820709,0.1737104,17223.0,17222.0,2.60904545]
[1673231820967,0.1737104,17223.0,17222.0,2.74704545]
[1673231823029,0.1737104,17223.0,17222.0,2.10077067]
[1673231823277,0.43439946,17223.0,17222.0,2.10077067]
[1673231823535,0.43412601,17223.0,17222.0,2.10077067]
[1673231823794,0.60764814,17223.0,17222.0,1.62434568]
[1673231824058,0.43402746,17223.0,17222.0,1.62434568]
[1673231824855,0.43393903,17223.0,17222.0,1.62434568]
[1673231825134,0.78154293,17223.0,17222.0,1.39964568]
[1673231825386,0.78154293,17223.0,17222.0,1.55085025]
[1673231825701,1.0418829,17223.0,17222.0,1.55085025]
[1673231825875,0.6075725,17223.0,17222.0,1.55085025]
[1673231826137,0.26033997,17223.0,17222.0,2.26325025]
[1673231826410,0.26033997,17223.0,17222.0,2.56325025]
[1673231827945,0.26033997,17223.0,17222.0,2.7067858]
[1673231828273,0.26033997,17223.0,17222.0,3.2129858]
[1673231828732,0.0103141,17227.0,17225.0,0.9111]
[1673231829000,0.0103141,17227.0,17226.0,2.97116938]
[1673231829253,0.0103141,17227.0,17226.0,23.31999297]
[1673231829517,0.53153322,17228.0,17227.0,0.3]
[1673231829751,0.53153322,17228.0,17227.0,1.46275938]
[1673231830022,0.01100871,17228.0,17227.0,1.96897625]
[1673231830283,0.01100871,17228.0,17227.0,28.38287013]
[1673231830533,0.01100871,17228.0,17227.0,28.90912951]
[1673231831280,0.01100871,17228.0,17227.0,28.38287013]
[1673231831526,0.01100871,17228.0,17227.0,8.60917013]
[1673231831786,0.01100871,17228.0,17227.0,8.47117013]
[1673231832037,0.01100871,17228.0,17227.0,16.40917013]
[1673231832288,0.01100871,17228.0,17227.0,16.27117013]
[1673231832579,0.01100871,17228.0,17227.0,17.00917013]
[1673231832843,0.01100871,17228.0,17227.0,17.12087013]
[1673231833129,0.01100871,17228.0,17227.0,10.28612951]
[1673231833679,0.01100871,17228.0,17227.0,17.78612951]
[1673231833940,0.01100871,17228.0,17227.0,17.64812951]
[1673231834210,0.01100871,17228.0,17227.0,17.64712951]
[1673231834476,0.01100871,17228.0,17227.0,18.20131251]
[1673231834769,0.01100871,17228.0,17227.0,18.33931251]
[1673231835273,0.01100871,17228.0,17227.0,17.75882951]
[1673231835528,0.01100871,17228.0,17227.0,17.62082951]
[1673231835820,0.01100871,17228.0,17227.0,17.75882951]
[1673231838155,0.2486866,17228.0,17227.0,17.75882951]
[1673231838406,0.01100871,17228.0,17227.0,17.23257013]
[1673231838672,0.01100871,17228.0,17227.0,17.75882951]
[1673231839184,0.01100871,17228.0,17227.0,18.23192951]
[1673231839484,0.01100871,17228.0,17227.0,18.36992951]
[1673231840291,0.01100871,17228.0,17227.0,17.56697625]
[1673231840548,0.01100871,17228.0,17227.0,18.25986025]
[1673231840801,0.01100871,17228.0,17227.0,18.39786025]
[1673231841058,0.01100871,17228.0,17227.0,18.67937625]
[1673231841420,0.47245498,17229.0,17228.0,1.48053929]
[1673231841563,0.01100884,17230.0,17229.0,0.33281791]
[1673231841781,0.01100884,17230.0,17229.0,2.74064713]
[1673231842325,0.01100884,17230.0,17229.0,18.24034713]
[1673231842594,0.01100884,17230.0,17229.0,18.399263]
[1673231843372,0.01100884,17230.0,17229.0,19.10579962]
[1673231843632,0.01100884,17230.0,17229.0,18.537263]
[1673231843863,0.01100884,17230.0,17229.0,19.23173991]
[1673231845393,0.01100884,17230.0,17229.0,19.07823423]
[1673231845644,0.01100884,17230.0,17229.0,18.537263]
[1673231845869,0.01100884,17230.0,17229.0,19.19123987]
[1673231846117,0.01100884,17230.0,17229.0,18.537263]
[1673231846366,0.01100884,17230.0,17229.0,19.24056758]
[1673231846624,0.01100884,17230.0,17229.0,18.537263]
[1673231846882,0.01100884,17230.0,17229.0,19.438573]
[1673231847144,0.01100884,17230.0,17229.0,20.138573]
[1673231847391,0.01100884,17230.0,17229.0,21.138573]
[1673231847882,0.01100884,17230.0,17229.0,20.138573]
[1673231848149,0.01100884,17230.0,17229.0,20.73839444]
[1673231848401,0.01100884,17230.0,17229.0,20.138573]
[1673231848896,0.01100884,17230.0,17229.0,21.718961]
[1673231849150,0.01179103,17231.0,17230.0,1.58266006]
[1673231849406,0.58465047,17233.0,17231.0,1.47965497]
[1673231849643,0.58465047,17233.0,17232.0,2.10766022]
[1673231849886,0.58465047,17233.0,17232.0,2.40766022]
[1673231850136,0.58465047,17233.0,17232.0,15.90775627]
[1673231850376,0.58465047,17233.0,17232.0,16.06667214]
[1673231850646,0.58455047,17233.0,17232.0,16.06667214]
[1673231851143,0.58455047,17233.0,17232.0,16.20467214]
[1673231851394,0.58455047,17233.0,17232.0,16.66491636]
[1673231851644,0.58455047,17233.0,17232.0,17.27601636]
[1673231851891,0.58455047,17233.0,17232.0,17.41401636]
[1673231853175,0.58455047,17233.0,17232.0,17.27601636]
[1673231853421,0.58455047,17233.0,17232.0,17.41401636]
[1673231853684,0.82222836,17233.0,17232.0,16.36491636]
[1673231853962,0.58455047,17233.0,17232.0,15.86714314]
[1673231854684,0.58455047,17233.0,17232.0,15.72914314]
[1673231855694,0.58455047,17233.0,17232.0,16.16714314]
[1673231855933,0.58455047,17233.0,17232.0,16.02914314]
[1673231856174,0.58455047,17233.0,17232.0,16.16714314]
[1673231856695,0.58455047,17233.0,17232.0,16.30514314]
[1673231856945,0.58455047,17233.0,17232.0,16.02914314]
[1673231857195,0.58455047,17233.0,17232.0,16.16714314]
[1673231857441,0.58455047,17233.0,17232.0,16.02914314]
[1673231857689,0.58455047,17233.0,17232.0,16.16714314]
[1673231857937,0.58455047,17233.0,17232.0,16.02914314]
[1673231858190,0.58455047,17233.0,17232.0,16.05406314]
[1673231859011,0.58455047,17233.0,17232.0,16.19206314]
[1673231859243,0.58455047,17233.0,17232.0,15.82936314]
[1673231859719,0.58455047,17233.0,17232.0,15.96736314]
[1673231859983,0.58455047,17233.0,17232.0,15.82936314]
[1673231860226,0.58455047,17233.0,17232.0,15.96736314]
[1673231860473,0.58455047,17233.0,17232.0,15.82936314]
[1673231860736,0.58455047,17233.0,17232.0,15.96736314]
[1673231861232,0.58455047,17233.0,17232.0,15.82936314]
[1673231861489,0.58455047,17233.0,17232.0,16.35283636]
[1673231861742,0.58455047,17233.0,17232.0,16.32791636]
[1673231862556,0.58455047,17233.0,17232.0,6.44917]
[1673231862796,0.58455047,17233.0,17232.0,6.31117]
[1673231863044,0.58503014,17233.0,17232.0,6.438]
[1673231863293,0.58455047,17233.0,17232.0,4.0]
[1673231863560,0.58455047,17233.0,17232.0,4.138]
[1673231863825,0.58455047,17233.0,17232.0,0.3]
[1673231864138,0.58455047,17233.0,17232.0,5.3]
[1673231864332,0.58455047,17233.0,17232.0,5.74003159]
[1673231868296,1.22360948,17233.0,17232.0,5.138]
[1673231868545,1.22312981,17233.0,17232.0,5.138]
[1673231868798,1.22312981,17233.0,17232.0,4.138]
[1673231869047,1.22312981,17233.0,17232.0,4.0]
[1673231869305,1.22312981,17233.0,17232.0,4.138]
[1673231869553,0.58455047,17233.0,17232.0,0.47408]
[1673231869823,0.58455047,17233.0,17232.0,5.77408]
[1673231873608,0.58503014,17233.0,17232.0,5.47408]
[1673231873856,0.58455047,17233.0,17232.0,5.47408]
[1673231874381,0.58455047,17233.0,17232.0,5.77408]
[1673231877153,0.58455047,17233.0,17232.0,13.27448097]
[1673231879540,0.93224331,17233.0,17232.0,14.90585708]
[1673231879704,1.19299925,17233.0,17232.0,14.13055708]
[1673231880223,1.19299244,17233.0,17232.0,15.74165708]
[1673231880474,1.19299244,17233.0,17232.0,14.74165708]
[1673231880475,0.84531279,17233.0,17232.0,14.74165708]
[1673231880729,0.84531279,17233.0,17232.0,14.70557708]
[1673231881521,0.84531279,17233.0,17232.0,14.56757708]
[1673231881826,0.84531279,17233.0,17232.0,15.26796082]
[1673231882118,0.58455047,17233.0,17232.0,16.26796082]
[1673231882330,0.58455047,17233.0,17232.0,15.26796082]
[1673231882589,0.58455047,17233.0,17232.0,14.70557708]
[1673231882839,0.58455047,17233.0,17232.0,15.2673716]
[1673231883371,0.58455047,17233.0,17232.0,16.2673716]
[1673231883607,0.5263594,17233.0,17232.0,16.22994316]
[1673231883857,0.01086929,17234.0,17233.0,1.05630857]
[1673231884133,0.01086929,17234.0,17233.0,2.14050987]
[1673231884403,0.01086929,17234.0,17233.0,18.42076187]
[1673231884645,0.01329101,17235.0,17234.0,1.48047571]
[1673231884902,0.01329101,17235.0,17234.0,3.68705101]
[1673231885174,0.01329101,17235.0,17234.0,21.20960547]
[1673231885426,0.01329101,17235.0,17234.0,21.38705101]
[1673231885645,0.01320101,17237.0,17235.0,1.17811099]
[1673231885991,0.01320101,17237.0,17236.0,3.27498523]
[1673231886210,0.0142599,17240.0,17238.0,0.6111]
[1673231886485,1.34433312,17242.0,17239.0,1.691174]
[1673231886737,0.59714667,17242.0,17241.0,0.6111]
[1673231887014,0.59714667,17242.0,17241.0,1.0234]
[1673231887357,0.59714667,17242.0,17241.0,3.9111]
[1673231887788,0.59714667,17242.0,17241.0,4.50612762]
[1673231888051,0.33693657,17242.0,17241.0,4.50612762]
[1673231888307,0.33693657,17242.0,17241.0,12.00612762]
[1673231888569,0.33193657,17242.0,17241.0,11.53302762]
[1673231888819,0.59184623,17242.0,17241.0,11.39502762]
[1673231889067,0.33193657,17242.0,17241.0,11.39502762]
[1673231889318,0.33193657,17242.0,17241.0,11.93302762]
[1673231889573,0.5918571,17242.0,17241.0,11.79502762]
[1673231889832,0.5918571,17242.0,17241.0,11.93308762]
[1673231890085,0.33193657,17242.0,17241.0,11.93308762]
[1673231890585,0.33193657,17242.0,17241.0,12.23308762]
[1673231891106,0.59185287,17242.0,17241.0,11.33806]
[1673231891361,1.15704858,17242.0,17241.0,10.63806]
[1673231891629,1.50339021,17242.0,17241.0,10.63806]
[1673231891873,1.50339021,17242.0,17241.0,10.63790192]
[1673231892608,1.15704858,17242.0,17241.0,10.63790192]
[1673231892854,1.14658711,17242.0,17241.0,10.63790192]
[1673231893364,0.3214751,17242.0,17241.0,10.63790192]
[1673231894381,0.58115805,17242.0,17241.0,10.63790192]
[1673231894977,0.57615805,17242.0,17241.0,10.63790192]
[1673231895175,0.3164751,17242.0,17241.0,10.63790192]
[1673231895668,0.57615805,17242.0,17241.0,10.63790192]
[1673231895936,1.26708336,17242.0,17241.0,10.63784192]
[1673231896195,1.8990347,17242.0,17241.0,3.13784192]
[1673231896443,1.8990347,17242.0,17241.0,0.138]
[1673231896444,1.85269307,17242.0,17241.0,0.138]
[1673231896698,1.41998008,17242.0,17241.0,0.138]
[1673231896947,1.9391901,17242.0,17241.0,0.138]
[1673231897194,0.77881117,17241.0,17240.0,6e-05]
[1673231897446,1.07880984,17241.0,17240.0,6e-05]
[1673231897710,1.07928951,17241.0,17240.0,6e-05]
[1673231897962,0.90573309,17241.0,17240.0,6e-05]
[1673231898473,0.73267256,17241.0,17240.0,6e-05]
[1673231899242,0.73267256,17241.0,17240.0,0.14006]
[1673231899539,0.17407644,17241.0,17240.0,0.68156898]
[1673231899792,0.002,17241.0,17240.0,1.12256898]
[1673231900032,0.48955154,17242.0,17240.0,0.98156898]
[1673231900273,0.48955154,17242.0,17241.0,0.34913869]
[1673231900516,0.48955154,17242.0,17241.0,0.64913869]
[1673231900763,0.3164751,17242.0,17241.0,0.94913869]
[1673231901005,0.31695477,17242.0,17241.0,8.14913869]
[1673231901249,0.48955154,17242.0,17241.0,8.14913869]
[1673231902231,0.75014766,17242.0,17241.0,8.28713869]
[1673231902494,0.49103121,17242.0,17241.0,7.98713869]
[1673231902811,0.75062733,17242.0,17241.0,7.638]
[1673231903559,0.92320819,17242.0,17241.0,7.638]
[1673231904332,0.92220819,17242.0,17241.0,7.5]
[1673231904576,0.75010905,17242.0,17241.0,7.639]
[1673231904818,0.49051293,17242.0,17241.0,8.30412343]
[1673231905067,0.49051293,17242.0,17241.0,8.60412343]
[1673231905327,0.3174751,17242.0,17241.0,8.60412343]
[1673231906326,0.49051293,17242.0,17241.0,8.30412343]
[1673231906621,0.49051293,17242.0,17241.0,8.32030109]
[1673231908154,0.3174751,17242.0,17241.0,8.62030109]
[1673231911734,0.3174751,17242.0,17241.0,8.61999338]
[1673231912231,0.3174751,17242.0,17241.0,8.31999338]
[1673231912492,0.49051293,17242.0,17241.0,7.65486995]
[1673231913029,0.75010905,17242.0,17241.0,7.65486995]
[1673231913290,0.75058872,17242.0,17241.0,7.65486995]
[1673231913543,1.7557348,17242.0,17241.0,7.63869229]
[1673231913803,1.51805691,17242.0,17241.0,7.63869229]
[1673231914076,1.34451702,17242.0,17241.0,7.63869229]
[1673231914318,1.69098268,17242.0,17241.0,7.63869229]
[1673231914572,1.34499669,17242.0,17241.0,7.63869229]
[1673231914825,1.68615045,17242.0,17241.0,7.63869229]
[1673231915080,1.68614781,17242.0,17241.0,7.63869229]
[1673231915333,1.33951702,17242.0,17241.0,7.63869229]
[1673231915578,1.68614664,17242.0,17241.0,7.63869229]
[1673231916089,1.09177759,17242.0,17241.0,7.63869229]
[1673231916599,0.74514797,17242.0,17241.0,7.63869229]
[1673231917100,0.78056807,17242.0,17241.0,7.63869229]
[1673231917606,0.78056807,17242.0,17241.0,7.63919353]
[1673231917865,0.78056841,17242.0,17241.0,7.63919353]
[1673231918415,0.78104808,17242.0,17241.0,7.62118478]
[1673231918668,0.52068969,17242.0,17241.0,7.62118478]
[1673231918919,0.52021002,17242.0,17241.0,7.62118478]
[1673231919699,0.001,17242.0,17241.0,7.62118478]
[1673231920223,0.52068969,17242.0,17241.0,7.62118478]
[1673231920473,0.52021002,17242.0,17241.0,7.62118478]
[1673231920740,0.53151915,17242.0,17241.0,7.62118478]
[1673231921011,1.11562026,17242.0,17241.0,0.139]
[1673231921256,1.11609993,17242.0,17241.0,0.139]
[1673231923071,1.41609993,17242.0,17241.0,0.139]
[1673231923339,1.41839897,17242.0,17241.0,0.139]
[1673231923595,1.41839897,17242.0,17241.0,0.15746349]
[1673231924627,1.32124367,17242.0,17241.0,0.15746349]
[1673231924876,2.23443009,17242.0,17241.0,0.15746349]
[1673231925388,3.08625904,17242.0,17241.0,0.15746349]
[1673231925671,2.82837776,17242.0,17241.0,0.139]
[1673231925923,1.91519134,17242.0,17241.0,0.139]
[1673231926198,1.91419134,17242.0,17240.0,6e-05]
[1673231926454,0.887912,17241.0,17240.0,6e-05]
[1673231926952,2.440912,17241.0,17240.0,6e-05]
[1673231927711,2.440912,17241.0,17240.0,0.00806]
[1673231927963,2.99008642,17241.0,17240.0,6e-05]
[1673231928222,2.99008642,17241.0,17240.0,0.00106]
[1673231928223,3.01208642,17241.0,17240.0,0.00106]
[1673231928747,3.67430341,17241.0,17240.0,0.00106]
[1673231929776,3.90423908,17241.0,17240.0,0.00106]
[1673231930033,3.71763409,17241.0,17240.0,0.00106]
[1673231930282,3.35362209,17241.0,17240.0,0.00106]
[1673231930534,4.22243409,17241.0,17240.0,0.00106]
[1673231931069,5.07716148,17241.0,17240.0,0.001]
[1673231931340,5.32227102,17241.0,17240.0,0.001]
[1673231931589,6.17699841,17241.0,17240.0,0.001]
[1673231931862,4.7340169,17241.0,17240.0,0.001]
[1673231932355,4.2287169,17241.0,17240.0,0.001]
[1673231932621,3.45604248,17241.0,17240.0,0.001]
[1673231932872,3.09203048,17241.0,17240.0,0.001]
[1673231933145,3.45604248,17241.0,17240.0,0.001]
[1673231933491,3.92979387,17241.0,17240.0,0.001]
[1673231933670,3.56578187,17241.0,17240.0,0.001]
[1673231933944,3.92979387,17241.0,17240.0,0.001]
[1673231934456,3.56578187,17241.0,17240.0,0.001]
[1673231934698,3.92979387,17241.0,17240.0,0.001]
[1673231934953,3.56578187,17241.0,17240.0,0.001]
[1673231935209,3.92979387,17241.0,17240.0,0.001]
[1673231936249,3.56578187,17241.0,17240.0,0.001]
[1673231936505,3.92979387,17241.0,17240.0,0.001]
[1673231937046,3.56578187,17241.0,17240.0,0.001]
[1673231937350,4.44003425,17241.0,17240.0,0.001]
[1673231937552,4.27852933,17241.0,17240.0,0.001]
[1673231937800,4.82289832,17241.0,17240.0,0.001]
[1673231938306,4.38868097,17241.0,17240.0,0.001]
[1673231938821,3.71903409,17241.0,17240.0,0.001]
[1673231939079,4.38599786,17241.0,17240.0,0.001]
[1673231939334,3.71903409,17241.0,17240.0,0.001]
[1673231939613,4.36955481,17241.0,17240.0,0.001]
[1673231939864,4.96343194,17241.0,17240.0,0.001]
[1673231940158,4.36955481,17241.0,17240.0,0.001]
[1673231940413,0.5845608,17238.0,17237.0,6e-05]
[1673231940676,1.54252047,17238.0,17237.0,6e-05]
[1673231940928,1.84252047,17238.0,17237.0,6e-05]
[1673231941450,0.3,17238.0,17237.0,6e-05]
[1673231941969,1.40546304,17238.0,17237.0,0.00806]
[1673231942245,1.99002384,17238.0,17237.0,0.00806]
[1673231942494,1.04145104,17238.0,17237.0,0.00806]
[1673231943265,1.13045104,17238.0,17237.0,6e-05]
[1673231943543,1.67600021,17238.0,17237.0,0.00106]
[1673231943850,1.15693071,17238.0,17237.0,0.00106]
[1673231945305,1.56385635,17238.0,17237.0,0.00106]
[1673231945549,1.56433602,17238.0,17237.0,0.00106]
[1673231945794,1.56385635,17238.0,17237.0,0.00106]
[1673231946311,1.04445104,17238.0,17237.0,0.00106]
[1673231946558,0.60600021,17236.0,17235.0,1.14776682]
[1673231946839,1.19421582,17236.0,17235.0,1.14776682]
[1673231947085,0.7613603,17236.0,17235.0,1.14776682]
[1673231947354,0.52368241,17236.0,17235.0,1.14776682]
[1673231947614,1.04356739,17236.0,17235.0,1.14776682]
[1673231947851,0.52416208,17236.0,17235.0,1.14776682]
[1673231948095,1.04956739,17236.0,17235.0,1.26076682]
[1673231948358,1.25050521,17236.0,17235.0,1.26064494]
[1673231948638,2.59328133,17236.0,17235.0,1.26064494]
[1673231948954,1.48503812,17236.0,17235.0,1.26064494]
[1673231949149,1.84905012,17236.0,17235.0,1.26064494]
[1673231949391,2.54682831,17236.0,17235.0,1.14764494]
[1673231949638,2.24020569,17236.0,17235.0,1.14764494]
[1673231949887,2.54020569,17236.0,17235.0,1.14764494]
[1673231950179,2.24105012,17236.0,17235.0,1.15564494]
[1673231950661,2.82374433,17236.0,17235.0,1.15564494]
[1673231951173,2.24105012,17236.0,17235.0,1.15564494]
[1673231951434,2.53114012,17236.0,17235.0,1.15564494]
[1673231951668,3.12305953,17236.0,17235.0,1.15564494]
[1673231952213,2.20658233,17236.0,17235.0,1.15564494]
[1673231952478,2.93856288,17236.0,17235.0,1.15564494]
[1673231953006,2.3911521,17236.0,17235.0,1.15564494]
[1673231953268,2.49882426,17236.0,17235.0,1.15564494]
[1673231953516,2.86283626,17236.0,17235.0,1.15564494]
[1673231953767,2.49882426,17236.0,17235.0,1.15564494]
[1673231954041,1.96888859,17236.0,17235.0,1.15564494]
[1673231954273,0.61717478,17236.0,17235.0,1.15570968]
[1673231954773,0.61717478,17236.0,17235.0,1.15564494]
[1673231955059,0.70528073,17236.0,17235.0,1.15564494]
[1673231955286,0.81768073,17236.0,17235.0,1.15564494]
[1673231955525,1.51326489,17236.0,17235.0,1.15564494]
[1673231955779,1.51374456,17236.0,17235.0,1.15564494]
[1673231956034,1.41574456,17236.0,17235.0,1.14864494]
[1673231956295,1.44074456,17236.0,17235.0,1.14764494]
[1673231956624,1.44374456,17236.0,17235.0,1.19364494]
[1673231956790,2.67810776,17236.0,17235.0,1.19364494]
[1673231957548,2.81330423,17236.0,17235.0,1.19364494]
[1673231958083,1.86520807,17236.0,17235.0,1.19364494]
[1673231958344,2.22922007,17236.0,17235.0,1.19364494]
[1673231958862,1.86520807,17236.0,17235.0,1.19364494]
[1673231959351,2.22922007,17236.0,17235.0,1.18864494]
[1673231959607,2.3371996,17236.0,17235.0,1.18864494]
[1673231959882,1.75280807,17236.0,17235.0,1.18864494]
[1673231960138,1.7523284,17236.0,17235.0,1.18864494]
[1673231960400,1.4523284,17236.0,17235.0,1.18864494]
[1673231960642,1.3315397,17236.0,17235.0,1.18864494]
[1673231960895,0.63528073,17236.0,17235.0,1.18864494]
[1673231962697,0.63528073,17236.0,17235.0,1.48876813]
[1673231962977,0.63528073,17236.0,17235.0,1.48864494]
[1673231963183,0.63528073,17236.0,17235.0,1.18864494]
[1673231963704,0.028,17236.0,17235.0,1.48876813]
[1673231963964,0.028,17236.0,17235.0,1.9376111]
[1673231964277,0.54807419,17236.0,17235.0,1.9376111]
[1673231964701,0.02847967,17236.0,17235.0,1.18864494]
[1673231964952,0.028,17236.0,17235.0,1.18864494]
[1673231965710,0.73875931,17236.0,17235.0,1.18864494]
[1673231965969,0.73827964,17236.0,17235.0,1.18864494]
[1673231967461,1.32363469,17236.0,17235.0,1.18864494]
[1673231967710,1.70539572,17236.0,17235.0,1.18864494]
[1673231967961,0.85115931,17236.0,17235.0,1.18864494]
[1673231969212,0.85115931,17236.0,17235.0,1.18664494]
[1673231969466,0.85067964,17236.0,17235.0,1.18664494]
[1673231969961,0.73827964,17236.0,17235.0,1.18664494]
[1673231970215,1.3238306,17236.0,17235.0,1.18664494]
[1673231971247,0.73827964,17236.0,17235.0,1.18664494]
[1673231971506,0.85067964,17236.0,17235.0,1.18664494]
[1673231971998,1.21469164,17236.0,17235.0,1.18664494]
[1673231972245,2.79993822,17236.0,17235.0,1.18664494]
[1673231972499,2.54742622,17236.0,17235.0,1.18664494]
[1673231972791,2.97376033,17236.0,17235.0,1.18664494]
[1673231973044,1.85660698,17236.0,17235.0,1.18664494]
[1673231973317,2.22013931,17236.0,17235.0,1.18664494]
[1673231973581,1.85612731,17236.0,17235.0,1.18664494]
[1673231973827,2.22013931,17236.0,17235.0,1.18664494]
[1673231974378,1.10229164,17236.0,17235.0,1.18664494]
[1673231974595,0.73827964,17236.0,17235.0,1.18664494]
[1673231975378,0.73875931,17236.0,17235.0,1.18664494]
[1673231976131,0.73827964,17236.0,17235.0,1.18664494]
[1673231976384,0.73807964,17236.0,17235.0,1.18682088]
[1673231976889,0.73807964,17236.0,17235.0,1.18664494]
[1673231977410,0.73807964,17236.0,17235.0,1.18727149]
[1673231978934,0.0278,17236.0,17235.0,1.48727149]
[1673231979539,0.61413451,17236.0,17235.0,1.48727149]
[1673231979689,0.0278,17236.0,17235.0,1.48727149]
[1673231979941,0.23889967,17236.0,17235.0,1.18664494]
[1673231980186,0.80552389,17236.0,17235.0,1.18664494]
[1673231980441,0.59442422,17236.0,17235.0,1.18760579]
[1673231980696,0.59442422,17236.0,17235.0,1.18664494]
[1673231980962,0.59442422,17236.0,17235.0,1.48664494]
[1673231983270,1.18079684,17236.0,17235.0,1.48664494]
[1673231983507,0.59442422,17236.0,17235.0,1.48664494]
[1673231984005,0.0278,17236.0,17235.0,1.48664494]
[1673231984287,0.61416368,17236.0,17235.0,1.48664494]
[1673231984552,0.0278,17236.0,17235.0,1.48664494]
[1673231984773,0.61416368,17236.0,17235.0,1.48664494]
[1673231985032,0.0278,17236.0,17235.0,1.48664494]
[1673231985285,0.58636368,17237.0,17235.0,1.44064494]
[1673231985532,0.58636368,17237.0,17236.0,0.3]
[1673231986580,0.003,17237.0,17236.0,0.5237]
[1673231986866,0.5242353,17237.0,17236.0,0.8237]
[1673231987339,0.5242353,17237.0,17236.0,8.3237]
[1673231987341,0.5242353,17237.0,17236.0,8.0237]
[1673231987596,0.5212353,17237.0,17236.0,8.0237]
[1673231987855,0.5232353,17237.0,17236.0,8.1637]
[1673231988110,0.5212353,17237.0,17236.0,8.0237]
[1673231988885,0.5212353,17237.0,17236.0,8.39352603]
[1673231989415,0.5242353,17237.0,17236.0,8.53152603]
[1673231989897,0.003,17237.0,17236.0,8.53152603]
[1673231990402,0.52391265,17237.0,17236.0,8.53152603]
[1673231993280,0.52391265,17237.0,17236.0,8.41982603]
[1673231994277,0.003,17237.0,17236.0,8.41982603]
[1673231995656,0.76207021,17237.0,17236.0,0.438]
[1673231995921,0.76207021,17237.0,17236.0,0.138]
[1673231995922,1.27406969,17237.0,17236.0,0.138]
[1673231996170,1.13442424,17237.0,17236.0,0.138]
[1673231996427,1.13394457,17237.0,17236.0,0.438]
[1673231997197,1.13394457,17237.0,17236.0,0.138]
[1673231997707,1.13442424,17237.0,17236.0,0.138]
[1673231998006,0.54758089,17237.0,17236.0,0.438]
[1673231998261,1.13353377,17237.0,17236.0,0.438]
[1673231998531,1.13363922,17237.0,17236.0,0.438]
[1673231998799,1.13363937,17237.0,17236.0,0.438]
[1673231999060,0.54758089,17237.0,17236.0,0.438]
[1673231999574,0.54758089,17237.0,17236.0,0.138]
[1673231999575,0.54806056,17237.0,17236.0,0.138]
[1673232000291,0.54758089,17237.0,17236.0,0.438]
[1673232001329,0.54758089,17237.0,17236.0,0.433197]
[1673232001580,0.58914359,17237.0,17236.0,0.433197]
[1673232002596,0.58962326,17237.0,17236.0,0.133197]